bitfinex-derivatives/quotes_SOLF0:USTF0_20251117
["timestamp","ask_amount","ask_price","bid_price","bid_amount"]
[1763368675182,1.88079163,141.36,141.35,3.33818882]
[1763368678070,1.88079163,141.36,141.35,0.04818882]
[1763368681480,8.8469301,141.39,141.35,3.33818882]
[1763368681779,1.88079163,141.36,141.35,3.33818882]
[1763368682971,1.88079163,141.36,141.35,12.19340924]
[1763368685376,8.8469301,141.39,141.36,3.29]
[1763368685578,1.88079163,141.38,141.37,12.14522042]
[1763368685773,0.05372933,141.39,141.38,3.29]
[1763368685980,0.05372933,141.39,141.38,12.14522042]
[1763368697586,1.88079163,141.42,141.39,3.16]
[1763368697786,6.59304051,141.43,141.41,3.16]
[1763368698089,6.59304051,141.43,141.42,12.01522042]
[1763368699389,8.51625342,141.44,141.43,3.16]
[1763368699588,8.51625342,141.44,141.43,12.01522042]
[1763368700191,9.74715325,141.44,141.43,12.01522042]
[1763368705690,7.86636162,141.44,141.43,12.01522042]
[1763368706094,6.63546179,141.44,141.43,12.01522042]
[1763368706278,0.04242128,141.44,141.43,12.01522042]
[1763368707089,8.47383214,141.49,141.44,3.11]
[1763368707394,1.23066042,141.48,141.46,3.11]
[1763368707585,9.25291214,141.5,141.48,3.11]
[1763368707785,10.48335499,141.5,141.49,8.85522042]
[1763368707988,10.48335499,141.5,141.49,7.94672778]
[1763368708183,3.89031448,141.5,141.49,7.94672778]
[1763368711093,3.89031448,141.5,141.42,3.11]
[1763368711094,14.10351525,141.5,141.42,3.11]
[1763368711392,1.88079163,141.46,141.42,3.11]
[1763368712094,0.04683455,141.45,141.44,3.11]
[1763368715193,10.45738784,141.5,141.44,3.11]
[1763368715395,3.89031448,141.5,141.45,3.11]
[1763368715690,2.00952285,141.5,141.45,3.11]
[1763368716184,2.00952285,141.5,141.47,3.11]
[1763368716386,3.89031448,141.5,141.47,3.11]
[1763368716795,2.00952285,141.5,141.47,3.11]
[1763368717999,0.77908,141.5,141.47,3.11]
[1763368718699,9.50243787,141.55,141.47,3.11]
[1763368718905,9.50243787,141.55,141.51,3.11]
[1763368718906,1.23016013,141.54,141.51,3.11]
[1763368725094,23.66616807,141.57,141.51,3.11]
[1763368725295,1.22992101,141.56,141.51,3.11]
[1763368725706,30.38787536,141.6,141.51,3.11]
[1763368725905,1.22979062,141.59,141.55,3.11]
[1763368727811,2.93536451,141.58,141.55,3.11]
[1763368729813,2.93536451,141.56,141.54,3.15669302]
[1763368731408,2.93536451,141.56,141.54,0.04669302]
[1763368732515,10.02036451,141.56,141.54,0.04669302]
[1763368734718,0.45330698,141.54,141.51,3.11]
[1763368734910,10.02036451,141.56,141.51,3.11]
[1763368735212,7.085,141.56,141.51,3.11]
[1763368735413,2.93536451,141.55,141.51,3.11]
[1763368735815,0.04790044,141.54,141.53,3.24]
[1763368737310,2.93536451,141.58,141.53,3.24]
[1763368737515,1.22979062,141.59,141.53,3.24]
[1763368738519,2.93536451,141.6,141.53,3.24]
[1763368738817,1.22968198,141.59,141.56,3.24]
[1763368740413,6.56707336,141.62,141.56,3.24]
[1763368740414,9.50243787,141.62,141.56,3.24]
[1763368740716,4.16480755,141.62,141.56,3.24]
[1763368741621,10.73188091,141.62,141.56,3.24]
[1763368742916,4.16480755,141.62,141.56,3.24]
[1763368743919,2.93536451,141.62,141.56,3.24]
[1763368744619,2.93536451,141.61,141.56,3.24]
[1763368744819,2.93536451,141.61,141.58,3.24]
[1763368746122,6.56707336,141.63,141.58,3.24]
[1763368746316,2.93536451,141.63,141.58,3.24]
[1763368746917,4.16472069,141.64,141.58,3.24]
[1763368747130,1.22935618,141.64,141.58,3.24]
[1763368748329,2.93536451,141.63,141.58,3.24]
[1763368749920,2.93536451,141.61,141.57,3.28537295]
[1763368751330,9.50243787,141.61,141.57,3.28537295]
[1763368754530,6.56707336,141.61,141.57,3.28537295]
[1763368754829,9.50243787,141.61,141.57,3.28537295]
[1763368755029,2.93536451,141.61,141.57,3.28537295]
[1763368755334,9.50243787,141.63,141.57,3.28537295]
[1763368755534,10.73179405,141.64,141.57,3.28537295]
[1763368756029,6.56707336,141.64,141.57,3.28537295]
[1763368756224,6.56707336,141.65,141.57,3.28537295]
[1763368756418,6.56707336,141.66,141.61,3.24]
[1763368756623,6.56707336,141.65,141.61,3.24]
[1763368756819,9.50243787,141.65,141.61,3.24]
[1763368758029,2.93536451,141.63,141.6,3.19887998]
[1763368758225,6.56707336,141.62,141.6,3.19887998]
[1763368758729,2.93536451,141.61,141.6,0.04887998]
[1763368759033,9.50243787,141.61,141.6,0.04887998]
[1763368760034,2.93536451,141.61,141.6,0.04887998]
[1763368760231,9.50243787,141.61,141.6,0.04887998]
[1763368761235,11.72856528,141.61,141.6,0.04887998]
[1763368761441,9.5055672,141.61,141.6,0.04887998]
[1763368761827,9.5055672,141.61,141.57,3.15]
[1763368762027,6.57020269,141.6,141.57,3.15]
[1763368762631,9.5055672,141.61,141.57,3.15]
[1763368762835,0.04590152,141.6,141.58,3.20078706]
[1763368763034,0.04642542,141.6,141.58,3.19477091]
[1763368764135,6.61662811,141.6,141.58,3.19477091]
[1763368767439,0.04642542,141.6,141.58,3.19477091]
[1763368767946,6.61662811,141.6,141.58,3.19477091]
[1763368770830,0.04642542,141.6,141.58,3.19477091]
[1763368771232,6.61662811,141.6,141.58,3.19477091]
[1763368771434,6.57020269,141.59,141.58,3.19477091]
[1763368775545,6.61662811,141.6,141.58,3.19477091]
[1763368775744,6.57020269,141.59,141.58,3.19477091]
[1763368777244,8.83962619,141.6,141.58,3.19477091]
[1763368778044,6.58834642,141.59,141.58,3.19477091]
[1763368778248,8.83962619,141.6,141.58,3.19477091]
[1763368779444,8.79320077,141.59,141.58,3.19477091]
[1763368780148,8.79320077,141.59,141.58,12.03522688]
[1763368780744,10.66882941,141.59,141.58,8.88522688]
[1763368780944,1.87562864,141.59,141.58,8.88522688]
[1763368781148,1.87562864,141.59,141.55,3.15]
[1763368781450,8.47415673,141.56,141.55,3.15]
[1763368781648,6.81296275,141.56,141.55,3.15]
[1763368783548,4.93733411,141.56,141.55,3.15]
[1763368783948,0.04995798,141.57,141.55,3.15]
[1763368784655,8.79804549,141.61,141.56,3.15]
[1763368785050,10.67367413,141.62,141.56,3.15]
[1763368785659,0.04881949,141.6,141.59,3.15]
[1763368789551,10.72249362,141.6,141.58,0.05439042]
[1763368789857,1.92444813,141.6,141.58,0.05439042]
[1763368791354,10.72249362,141.6,141.58,0.05439042]
[1763368792450,1.87562864,141.59,141.58,3.12439042]
[1763368793160,1.87562864,141.59,141.58,11.96357729]
[1763368793357,0.04881949,141.6,141.59,3.07]
[1763368793549,0.04881949,141.6,141.59,11.90918687]
[1763368796560,1.77798966,141.6,141.59,11.90918687]
[1763368796958,1.87562864,141.62,141.6,3.07]
[1763368797164,1.87562864,141.62,141.61,11.90918687]
[1763368798759,1.87562864,141.62,141.61,8.83918687]
[1763368799065,10.67367413,141.62,141.61,8.83918687]
[1763368799364,1.87562864,141.62,141.61,8.83918687]
[1763368799667,75.77562864,141.62,141.61,8.83918687]
[1763368799867,75.77562864,141.62,141.61,11.90918687]
[1763368800360,73.9,141.62,141.61,11.90918687]
[1763368801263,73.9,141.62,141.61,8.83918687]
[1763368801861,1.87562864,141.63,141.61,11.90918687]
[1763368802062,1.87562864,141.63,141.62,11.90918687]
[1763368802266,75.77562864,141.63,141.62,11.90918687]
[1763368802962,73.9,141.63,141.62,11.90918687]
[1763368805169,73.9,141.63,141.52,6.60390431]
[1763368805170,21.27,141.62,141.43,246.0]
[1763368805471,21.27,141.62,141.34,3.07]
[1763368805472,8.79061811,141.47,141.34,3.07]
[1763368805667,1.87562864,141.36,141.34,3.07]
[1763368805869,8.79061811,141.46,141.34,3.07]
[1763368806171,1.87562864,141.38,141.34,3.07]
[1763368806361,11.59882734,141.37,141.35,0.04617333]
[1763368806563,0.04636539,141.37,141.36,3.07]
[1763368806870,11.56193173,141.37,141.36,3.07]
[1763368807273,5.60798816,141.37,141.36,3.07]
[1763368808669,0.04636539,141.37,141.36,3.07]
[1763368808869,5.60798816,141.37,141.36,3.07]
[1763368809264,0.04636539,141.37,141.36,3.07]
[1763368809466,5.60798816,141.37,141.36,3.07]
[1763368811362,0.04636539,141.37,141.36,3.07]
[1763368812162,0.04636539,141.37,141.35,0.04617333]
[1763368812563,0.04636539,141.37,141.28,3.07]
[1763368812865,5.22670001,141.35,141.28,3.07]
[1763368813572,0.05385775,141.33,141.3,3.11770323]
[1763368813874,0.05271574,141.33,141.3,3.11489792]
[1763368817377,0.05271574,141.33,141.31,8.85471708]
[1763368817675,0.05271574,141.33,141.32,8.85471708]
[1763368818873,0.05271574,141.33,141.3,3.11489792]
[1763368819069,0.05271574,141.33,141.31,8.8550255]
[1763368819268,0.05271574,141.33,141.3,3.11489792]
[1763368819469,0.05271574,141.33,141.31,8.8550255]
[1763368819774,0.05271574,141.33,141.32,8.8550255]
[1763368819974,0.05271574,141.33,141.3,3.11489792]
[1763368820170,0.05271574,141.33,141.31,8.85543069]
[1763368820366,0.05271574,141.33,141.3,3.11489792]
[1763368820572,0.05271574,141.33,141.31,8.85543069]
[1763368820771,0.05271574,141.33,141.3,3.11489792]
[1763368820972,0.05271574,141.33,141.31,8.85543069]
[1763368821170,0.05271574,141.33,141.3,3.11489792]
[1763368821372,0.05271574,141.33,141.31,8.85543069]
[1763368821569,0.05271574,141.33,141.3,3.11489792]
[1763368821773,0.05271574,141.33,141.31,8.85543069]
[1763368821972,0.05271574,141.33,141.3,3.11489792]
[1763368822178,0.05271574,141.33,141.32,3.19]
[1763368822378,0.05271574,141.33,141.32,12.04543069]
[1763368830892,0.05271574,141.33,141.3,0.04489792]
[1763368831594,4.70850067,141.31,141.3,0.04489792]
[1763368831795,79.44850067,141.31,141.3,0.04489792]
[1763368831996,85.01012344,141.31,141.3,0.04489792]
[1763368832198,85.01012344,141.31,141.26,3.19]
[1763368832389,5.56162277,141.3,141.27,8.8573233]
[1763368832588,5.56162277,141.3,141.28,8.8573233]
[1763368832891,5.56162277,141.3,141.27,3.19]
[1763368833098,5.56162277,141.3,141.28,8.85741612]
[1763368833297,5.61338383,141.3,141.27,3.23611606]
[1763368833499,5.61338383,141.3,141.28,8.85782154]
[1763368833797,5.61338383,141.3,141.27,3.23611606]
[1763368833987,5.61338383,141.3,141.28,8.85782154]
[1763368834186,5.61338383,141.3,141.27,0.04611606]
[1763368835386,5.56162277,141.29,141.27,0.04611606]
[1763368836693,4.70850067,141.28,141.27,0.04611606]
[1763368836996,10.27012344,141.28,141.24,4.6]
[1763368837183,5.56162277,141.27,141.25,8.85941744]
[1763368837383,4.70850067,141.28,141.24,4.6]
[1763368837384,80.28162277,141.26,141.24,4.6]
[1763368837583,5.56162277,141.25,141.24,4.6]
[1763368837793,5.56162277,141.25,141.24,13.46045158]
[1763368838295,5.56162277,141.25,141.24,4.6]
[1763368841194,5.56162277,141.25,141.24,13.46158232]
[1763368841588,12.00901702,141.25,141.24,13.46158232]
[1763368842199,10.624363,141.25,141.24,13.46158232]
[1763368842494,10.624363,141.25,141.23,0.04707439]
[1763368842803,12.01341624,141.24,141.23,0.04707439]
[1763368843202,5.56162277,141.24,141.23,0.04707439]
[1763368843509,10.624363,141.24,141.23,0.04707439]
[1763368844200,19.41498111,141.24,141.23,0.04707439]
[1763368845801,27.62287712,141.24,141.2,6.0]
[1763368846107,19.41498111,141.23,141.2,6.0]
[1763368846295,94.13498111,141.22,141.2,6.0]
[1763368846497,10.624363,141.21,141.2,6.0]
[1763368846796,19.41498111,141.21,141.19,0.05381867]
[1763368846999,10.624363,141.2,141.19,0.05381867]
[1763368847303,19.26560933,141.2,141.19,0.05381867]
[1763368848405,10.47499122,141.2,141.19,0.05381867]
[1763368848697,14.07068096,141.2,141.19,0.05381867]
[1763368848904,19.13342119,141.2,141.19,0.05381867]
[1763368849103,10.47499122,141.2,141.19,0.05381867]
[1763368849310,10.47499122,141.2,141.18,5.53]
[1763368849497,93.85480739,141.19,141.18,5.53]
[1763368850300,85.17499122,141.19,141.18,5.53]
[1763368850804,85.17499122,141.19,141.18,8.72]
[1763368851305,80.11225099,141.19,141.18,8.72]
[1763368852108,80.11225099,141.19,141.18,5.53]
[1763368853106,5.41225099,141.19,141.18,8.89]
[1763368853409,11.93234851,141.19,141.18,8.89]
[1763368855204,5.41225099,141.19,141.18,8.89]
[1763368855410,11.93234851,141.19,141.18,8.89]
[1763368856109,5.41225099,141.19,141.18,8.89]
[1763368861812,8.5067242,141.19,141.18,5.53]
[1763368862612,8.5067242,141.19,141.17,0.04954629]
[1763368862808,80.05225099,141.18,141.17,0.04954629]
[1763368863112,80.05225099,141.18,141.17,3.40954629]
[1763368864717,80.03225099,141.18,141.17,3.40954629]
[1763368866514,80.03225099,141.18,141.17,0.04954629]
[1763368869214,3.09447321,141.16,141.13,3.36]
[1763368869419,74.6,141.15,141.13,3.36]
[1763368869617,5.3223435,141.14,141.13,3.36]
[1763368870118,74.65119863,141.15,141.13,3.36]
[1763368870315,0.05119863,141.15,141.13,3.36]
[1763368870517,74.6,141.14,141.13,3.36]
[1763368874225,79.9384297,141.14,141.13,3.36]
[1763368874826,8.73981583,141.22,141.2,3.36]
[1763368875028,74.6,141.31,141.2,3.36]
[1763368875228,17.616066,141.38,141.2,3.36]
[1763368875229,3.09447321,141.27,141.2,3.36]
[1763368875429,3.09447321,141.27,141.22,3.36]
[1763368875913,0.04778446,141.26,141.24,3.36]
[1763368883538,3.09447321,141.3,141.24,3.36]
[1763368884134,3.09447321,141.27,141.24,3.36]
[1763368884638,3.09447321,141.27,141.24,3.40736007]
[1763368884639,3.14275571,141.27,141.24,3.40736007]
[1763368885033,0.0482825,141.27,141.24,3.40736007]
[1763368886031,0.0482825,141.27,141.24,9.78446007]
[1763368886234,0.0482825,141.27,141.25,3.33]
[1763368889035,3.14275571,141.27,141.24,0.04736007]
[1763368889242,3.14275571,141.27,141.24,3.37736007]
[1763368898340,3.14275571,141.27,141.24,0.04736007]
[1763368898839,3.14275571,141.27,141.24,3.37736007]
[1763368900142,3.14275571,141.27,141.24,0.04736007]
[1763368900647,3.14275571,141.27,141.24,3.37736007]
[1763368900849,1.97920004,141.25,141.24,3.37736007]
[1763368902150,1.97920004,141.25,141.2,3.33]
[1763368902351,1.97920004,141.21,141.2,3.33]
[1763368916948,0.05409872,141.22,141.2,3.33]
[1763368920052,0.05409872,141.22,141.21,3.3]
[1763368926665,8.74915834,141.27,141.21,3.3]
[1763368926861,1.0,249.17,141.21,3.3]
[1763368926862,1.97920004,141.26,141.21,3.3]
[1763368927662,0.04605802,141.25,141.23,3.3]
[1763368929862,2.02525806,141.25,141.23,3.3]
[1763368930554,2.02525806,141.25,141.22,0.04754946]
[1763368931968,1.97920004,141.23,141.22,0.04754946]
[1763368936970,8.58465057,141.23,141.22,0.04754946]
[1763368937172,1.97920004,141.23,141.22,0.04754946]
[1763368938572,6.60545053,141.24,141.22,3.29754946]
[1763368938766,6.65150855,141.25,141.22,3.29754946]
[1763368938967,6.60545053,141.24,141.22,3.29754946]
[1763368939675,6.65150855,141.25,141.22,3.29754946]
[1763368939971,6.60545053,141.24,141.22,3.29754946]
[1763368941575,8.58465057,141.24,141.22,3.29754946]
[1763368942263,8.58465057,141.24,141.22,0.04754946]
[1763368942975,8.58465057,141.24,141.22,3.24754946]
[1763368944168,8.58465057,141.24,141.22,8.08754946]
[1763368947270,6.60545053,141.23,141.22,8.08754946]
[1763368947466,8.58465057,141.24,141.22,8.08754946]
[1763368948169,6.60545053,141.23,141.22,4.88754946]
[1763368948370,10.72835838,141.24,141.22,4.88754946]
[1763368948679,8.74915834,141.23,141.22,4.88754946]
[1763368949178,10.72835838,141.24,141.22,4.88754946]
[1763368956385,6.60760234,141.23,141.22,4.88754946]
[1763368960685,6.60760234,141.24,141.23,3.2]
[1763368960993,8.6328604,141.25,141.23,3.2]
[1763368962190,2.02525806,141.25,141.23,3.2]
[1763368962488,8.63280859,141.25,141.23,3.2]
[1763368962879,6.65360855,141.25,141.23,3.2]
[1763368964188,0.04605802,141.25,141.23,3.2]
[1763368965383,6.65360855,141.25,141.23,3.2]
[1763368965592,0.04605802,141.25,141.23,3.2]
[1763368966492,6.65360855,141.25,141.23,3.2]
[1763368966786,0.04605802,141.25,141.23,3.2]
[1763368973392,6.65360855,141.25,141.23,3.2]
[1763368975393,0.04605802,141.25,141.23,3.2]
[1763368975999,0.04605802,141.25,141.24,3.28]
[1763368976292,6.65360855,141.25,141.24,3.28]
[1763368985200,6.65360855,141.25,141.23,15.49]
[1763368985497,6.65360855,141.25,141.23,12.21]
[1763368985695,83.91970173,141.24,141.23,12.21]
[1763368986095,86.06130954,141.24,141.23,12.21]
[1763368986288,86.06130954,141.24,141.22,0.04754946]
[1763368986499,6.6052499,141.23,141.2,3.28]
[1763368986694,3.0921512,141.21,141.2,3.28]
[1763368988603,3.0921512,141.21,141.19,0.04541801]
[1763368989304,3.0921512,141.21,141.19,3.32541801]
[1763368991504,9.6974011,141.21,141.19,0.04541801]
[1763368993403,6.6052499,141.2,141.19,0.04541801]
[1763368994396,11.84130954,141.21,141.15,9.96]
[1763368994602,3.0921512,141.18,141.15,9.96]
[1763368995295,3.1374857,141.18,141.15,10.01248948]
[1763368997312,5.74203525,141.23,141.16,3.12]
[1763368997510,3.0921512,141.23,141.16,3.12]
[1763368998406,0.04773082,141.21,141.19,3.12]
[1763369027138,0.04773082,141.21,141.19,9.4995]
[1763369027942,0.04773082,141.21,141.2,3.24]
[1763369043051,0.04773082,141.21,141.18,3.19573328]
[1763369043253,2.02754683,141.21,141.18,3.19573328]
[1763369050665,1.97981601,141.19,141.18,3.19573328]
[1763369059373,1.97981601,141.2,141.18,3.19573328]
[1763369061672,1.97981601,141.2,141.18,0.04573328]
[1763369061971,8.5968239,141.2,141.18,0.04573328]
[1763369066476,1.97981601,141.2,141.18,0.04573328]
[1763369070373,1.97981601,141.2,141.17,6.7]
[1763369070671,1.97981601,141.18,141.13,3.25]
[1763369070875,1.97981601,141.18,141.11,6.3829]
[1763369070876,1.97981601,141.14,141.11,3.25]
[1763369071067,1.97981601,141.12,141.08,3.25]
[1763369071268,1.97981601,141.1,141.09,3.30326274]
[1763369071476,1.97981601,141.1,141.09,3.25]
[1763369072774,0.04610063,141.11,141.09,3.25]
[1763369074285,0.04610063,141.11,141.1,3.25]
[1763369074976,2.02591664,141.11,141.1,3.25]
[1763369075280,2.02591664,141.11,141.09,5.8]
[1763369075580,2.02591664,141.11,141.1,3.25]
[1763369075782,0.04610063,141.11,141.1,3.25]
[1763369081483,0.04610063,141.11,141.09,9.05]
[1763369084390,0.04610063,141.11,141.09,5.8]
[1763369085289,0.04610063,141.11,141.09,9.05]
[1763369086078,0.04610063,141.11,141.1,3.25]
[1763369086589,0.04610063,141.11,141.09,9.05]
[1763369088288,0.04610063,141.11,141.1,3.25]
[1763369094006,0.04610063,141.11,141.09,8.92]
[1763369094607,0.04610063,141.11,141.09,5.8]
[1763369097511,3.0975048,141.1,141.09,5.8]
[1763369100616,3.0975048,141.1,141.03,3.12]
[1763369100916,3.0975048,141.07,141.03,3.12]
[1763369101211,77.3175048,141.07,141.03,3.12]
[1763369101407,44.040165,141.33,141.04,3.12]
[1763369101408,74.22,141.1,141.04,3.12]
[1763369101612,0.05279252,141.08,141.07,3.12]
[1763369103901,3.15029732,141.08,141.06,3.16794015]
[1763369104905,3.15029732,141.08,141.06,0.04794015]
[1763369105105,74.26,141.07,141.06,3.16794015]
[1763369105315,0.05279252,141.08,141.06,3.16794015]
[1763369105613,77.3575048,141.12,141.06,4.58794015]
[1763369105815,77.3575048,141.12,141.06,3.12]
[1763369106509,0.05378384,141.1,141.09,3.12]
[1763369108119,6.56931932,141.16,141.09,3.12]
[1763369108317,6.56931932,141.2,141.1,3.12]
[1763369108522,42.7775048,141.21,141.1,3.12]
[1763369109325,0.04473061,141.17,141.15,3.12]
[1763369112521,0.04473061,141.17,141.14,3.17330748]
[1763369115522,3.0975048,141.15,141.14,3.17330748]
[1763369115825,3.0975048,141.15,141.14,0.05330748]
[1763369116024,3.0975048,141.15,141.12,3.12]
[1763369116225,3.0975048,141.15,141.11,6.99]
[1763369116425,3.0975048,141.12,141.11,10.11]
[1763369116626,3.0975048,141.12,141.11,6.99]
[1763369117127,0.04574862,141.13,141.11,10.36]
[1763369117428,3.0975048,141.12,141.11,10.36]
[1763369118424,3.0975048,141.12,141.11,6.99]
[1763369119518,3.0975048,141.12,141.1,3.41484168]
[1763369125834,0.04574862,141.13,141.1,3.41484168]
[1763369129432,80.92931932,141.18,141.12,3.16]
[1763369129433,3.0975048,141.17,141.12,3.16]
[1763369130329,0.05349106,141.16,141.13,0.05117307]
[1763369130633,0.05349106,141.16,141.13,3.21117307]
[1763369131039,0.05349106,141.16,141.13,0.05117307]
[1763369131238,3.0975048,141.14,141.13,0.05117307]
[1763369131834,3.0975048,141.14,141.13,3.21117307]
[1763369133733,3.0975048,141.14,141.13,0.05117307]
[1763369138446,0.05349106,141.16,141.13,3.21117307]
[1763369138641,3.0975048,141.15,141.13,3.21117307]
[1763369142847,3.0975048,141.15,141.13,0.05117307]
[1763369143435,3.0975048,141.15,141.08,3.16]
[1763369143635,3.0975048,141.12,141.08,3.16]
[1763369144545,3.0975048,141.12,141.09,3.21079552]
[1763369144546,0.04935809,141.11,141.09,3.21079552]
[1763369147650,0.04935809,141.11,141.1,3.16]
[1763369148045,63.06931932,141.17,141.1,3.16]
[1763369148046,1.98242658,141.15,141.11,6.3832]
[1763369148247,1.98242658,141.17,141.12,3.16]
[1763369149049,0.05278473,141.16,141.13,3.21233675]
[1763369149752,0.05278473,141.16,141.13,9.59453675]
[1763369149953,2.03521131,141.16,141.14,3.16]
[1763369151248,2.03521131,141.16,141.13,3.21233675]
[1763369151554,1.98242658,141.14,141.13,0.05233675]
[1763369151752,1.98242658,141.14,141.13,3.35233675]
[1763369152052,1.98242658,141.14,141.13,0.05233675]
[1763369152355,1.98242658,141.14,141.11,3.3]
[1763369152654,1.98242658,141.12,141.11,3.3]
[1763369153047,1.98242658,141.12,141.1,6.6]
[1763369153253,1.98242658,141.12,141.1,9.9]
[1763369153453,0.04618813,141.12,141.11,3.3]
[1763369156161,6.56931932,141.18,141.12,3.3]
[1763369156367,1.98242658,141.15,141.12,3.3]
[1763369157059,1.98242658,141.15,141.12,3.35397393]
[1763369157266,2.03235626,141.15,141.12,3.35397393]
[1763369157464,2.03235626,141.15,141.12,0.05397393]
[1763369157654,1.98242658,141.13,141.12,0.05397393]
[1763369159168,1.98242658,141.13,141.12,3.35397393]
[1763369160368,1.98242658,141.13,141.12,0.05397393]
[1763369162069,1.98242658,141.13,141.12,3.35397393]
[1763369163677,1.98242658,141.13,141.12,0.05397393]
[1763369164476,8.5517459,141.13,141.12,0.05397393]
[1763369164665,1.98242658,141.13,141.12,0.05397393]
[1763369165171,1.98242658,141.13,141.12,3.35397393]
[1763369166171,1.98242658,141.13,141.12,0.05397393]
[1763369166776,0.04992968,141.15,141.12,0.05397393]
[1763369167069,1.98242658,141.13,141.12,3.35397393]
[1763369167670,1.98242658,141.13,141.12,0.05397393]
[1763369170763,1.98242658,141.13,141.1,6.6]
[1763369170969,1.98242658,141.11,141.1,6.6]
[1763369171378,1.98242658,141.11,141.08,3.3]
[1763369172081,2.03004034,141.11,141.08,3.35366458]
[1763369174883,2.03004034,141.11,141.08,9.93366458]
[1763369176583,2.03004034,141.11,141.08,6.63366458]
[1763369176779,1.98242658,141.09,141.08,6.63366458]
[1763369177085,0.04761376,141.11,141.08,9.93366458]
[1763369177283,0.04761376,141.11,141.09,3.39]
[1763369183491,1.98242658,141.1,141.08,6.63366458]
[1763369185896,8.5517459,141.1,141.08,6.63366458]
[1763369186198,8.57417369,141.1,141.08,6.63366458]
[1763369186392,1.98242658,141.09,141.08,6.63366458]
[1763369186590,6.63936087,141.11,141.08,6.63366458]
[1763369186789,1.98242658,141.09,141.08,6.63366458]
[1763369187295,0.04761376,141.11,141.09,3.26]
[1763369187497,2.03004034,141.11,141.09,3.26]
[1763369187995,0.04761376,141.11,141.09,3.26]
[1763369189088,2.03004034,141.11,141.08,9.89366458]
[1763369189295,2.03004034,141.11,141.08,6.63366458]
[1763369189894,2.03004034,141.11,141.08,9.89366458]
[1763369190392,2.03004034,141.11,141.08,6.63366458]
[1763369190801,2.03004034,141.11,141.08,9.89366458]
[1763369190996,76.25004034,141.11,141.08,9.89366458]
[1763369194895,76.25004034,141.11,141.09,3.26]
[1763369196000,76.25004034,141.11,141.08,6.63366458]
[1763369197310,1.98242658,141.1,141.08,6.63366458]
[1763369198601,74.26761376,141.11,141.08,9.89366458]
[1763369198796,74.26761376,141.11,141.09,3.26]
[1763369198990,76.25004034,141.11,141.09,3.26]
[1763369199795,76.25004034,141.11,141.08,9.89366458]
[1763369200209,76.25004034,141.11,141.09,3.26]
[1763369200905,76.25004034,141.11,141.08,9.89366458]
[1763369201800,76.25004034,141.11,141.09,3.26]
[1763369205204,76.25004034,141.11,141.08,0.05366458]
[1763369205707,76.25004034,141.11,141.09,6.38]
[1763369205909,82.84178745,141.11,141.09,6.38]
[1763369206702,80.85936087,141.11,141.09,6.38]
[1763369206907,74.26761376,141.11,141.09,6.38]
[1763369209414,74.26761376,141.11,141.09,13.36]
[1763369212507,80.85936087,141.11,141.09,13.36]
[1763369213103,74.26761376,141.11,141.09,13.36]
[1763369213305,80.85936087,141.11,141.09,13.36]
[1763369219009,74.26761376,141.11,141.09,16.43]
[1763369220412,0.04761376,141.11,141.1,3.07]
[1763369220613,74.26761376,141.11,141.1,3.07]
[1763369222520,74.26761376,141.11,141.09,16.43]
[1763369222711,77.36644552,141.11,141.09,13.36]
[1763369223321,78.60029118,141.11,141.09,13.36]
[1763369224217,85.19203829,141.11,141.09,13.36]
[1763369233335,6.59174711,141.1,141.09,13.36]
[1763369233934,85.19203829,141.11,141.09,13.36]
[1763369234134,6.59174711,141.1,141.09,13.36]
[1763369236134,85.19203829,141.11,141.09,13.36]
[1763369239234,87.34944952,141.11,141.04,3.31]
[1763369239436,3.09883176,141.08,141.04,3.31]
[1763369239630,74.22,141.07,141.04,3.31]
[1763369240335,74.27056492,141.07,141.04,3.35617425]
[1763369244438,3.09883176,141.12,141.04,3.35617425]
[1763369244439,250.0,141.31,141.04,24.63617425]
[1763369244740,3.34,141.31,141.22,6.62320607]
[1763369245035,46.38,141.32,141.23,8.85757812]
[1763369245234,46.38,141.32,141.27,3.09883176]
[1763369245428,0.04657584,141.31,141.3,3.09883176]
[1763369245634,0.04657584,141.31,141.3,25.74579547]
[1763369245830,46.78,141.38,141.3,32.36900154]
[1763369246031,46.78,141.38,141.31,22.64696371]
[1763369246236,46.78,141.38,141.32,22.64696371]